bitfinex-derivatives/quotes_SOLF0:USTF0_20241107
["timestamp","ask_amount","ask_price","bid_price","bid_amount"]
[1730965218885,6.53287639,188.41,188.36,9.47287639]
[1730965219074,6.53287639,188.41,188.36,2.94]
[1730965219382,9.18517639,188.43,188.36,9.47287639]
[1730965220182,6.53287639,188.41,188.36,9.47287639]
[1730965220570,6.53287639,188.43,188.36,9.47287639]
[1730965220781,9.18517639,188.43,188.36,9.47287639]
[1730965220976,6.53287639,188.43,188.36,9.47287639]
[1730965221181,6.53287639,188.43,188.38,6.53287639]
[1730965221372,6.53287639,188.43,188.36,9.47287639]
[1730965221587,6.53287639,188.42,188.36,9.47287639]
[1730965222179,2.5064,188.45,188.4,6.53287639]
[1730965222383,2.5064,188.45,188.41,6.53287639]
[1730965222584,2.5064,188.45,188.36,2.94]
[1730965222880,2.5064,188.45,188.4,6.53287639]
[1730965223278,5.1584,188.45,188.36,2.94]
[1730965223483,2.5064,188.45,188.4,6.53287639]
[1730965223683,2.5064,188.45,188.36,2.94]
[1730965223989,2.5064,188.45,188.37,2.6531]
[1730965224179,2.5064,188.45,188.39,6.53287639]
[1730965225878,9.03927639,188.45,188.39,6.53287639]
[1730965227084,1.3201,188.49,188.39,6.53287639]
[1730965227276,3.9715,188.49,188.43,6.53287639]
[1730965227481,6.53287639,188.48,188.43,9.47287639]
[1730965227675,6.53287639,188.46,188.43,2.94]
[1730965230084,6.53287639,188.48,188.42,2.94]
[1730965230586,3.9715,188.49,188.42,2.94]
[1730965230977,6.53287639,188.48,188.42,2.94]
[1730965231485,9.18447639,188.48,188.42,2.94]
[1730965231885,6.53287639,188.48,188.42,2.94]
[1730965233086,7.85297639,188.49,188.43,6.53287639]
[1730965234286,6.53287639,188.52,188.45,6.53287639]
[1730965234684,1.246,188.54,188.45,6.53287639]
[1730965234885,6.53287639,188.52,188.45,6.53287639]
[1730965235193,6.53287639,188.52,188.42,2.94]
[1730965235392,9.18387639,188.52,188.47,6.53287639]
[1730965235595,9.18387639,188.52,188.47,9.47287639]
[1730965237287,2.6512,188.51,188.47,9.47287639]
[1730965237488,1.246,188.54,188.46,2.94]
[1730965237489,6.53287639,188.5,188.46,2.94]
[1730965238290,9.18417639,188.5,188.46,2.94]
[1730965238491,1.246,188.54,188.46,2.94]
[1730965238694,6.53287639,188.52,188.46,12.12467639]
[1730965238893,2.6509,188.53,188.46,12.12467639]
[1730965239205,2.6511,188.52,188.46,12.12467639]
[1730965239883,9.18397639,188.51,188.46,9.47287639]
[1730965241187,2.6511,188.51,188.46,9.47287639]
[1730965241587,9.18397639,188.51,188.46,2.94]
[1730965242685,2.6513,188.5,188.46,2.94]
[1730965243690,2.6513,188.5,188.44,6.53287639]
[1730965244000,6.53287639,188.49,188.45,2.92]
[1730965244892,2.6516,188.48,188.45,2.92]
[1730965245895,6.53287639,188.49,188.45,2.92]
[1730965246101,9.18437639,188.49,188.45,2.92]
[1730965246592,2.6515,188.49,188.45,2.92]
[1730965246791,6.53287639,188.5,188.45,2.92]
[1730965247596,9.18417639,188.5,188.45,2.92]
[1730965247794,6.53287639,188.5,188.45,2.92]
[1730965248794,2.6515,188.49,188.45,2.92]
[1730965249705,6.53287639,188.5,188.45,2.92]
[1730965250000,2.6514,188.49,188.45,2.92]
[1730965250396,6.53287639,188.48,188.35,1.9397]
[1730965250597,6.53287639,188.46,188.4,6.53287639]
[1730965250798,6.53287639,188.46,188.41,2.9]
[1730965252206,9.18487639,188.46,188.41,2.9]
[1730965252401,1.246,188.54,188.42,6.53287639]
[1730965252603,6.53287639,188.48,188.42,6.53287639]
[1730965252803,2.6518,188.47,188.42,6.53287639]
[1730965253004,2.6518,188.47,188.41,9.43287639]
[1730965254201,6.53287639,188.48,188.41,9.43287639]
[1730965254403,9.18447639,188.48,188.41,9.43287639]
[1730965254799,9.18447639,188.48,188.43,6.53287639]
[1730965255001,6.53287639,188.49,188.41,2.9]
[1730965255207,1.246,188.54,188.43,6.53287639]
[1730965255408,6.53287639,188.5,188.43,6.53287639]
[1730965255604,9.18427639,188.5,188.43,6.53287639]
[1730965256413,9.18427639,188.5,188.41,5.5524]
[1730965256612,9.18427639,188.5,188.43,6.53287639]
[1730965257203,2.6514,188.5,188.45,6.53287639]
[1730965257508,2.6514,188.5,188.46,9.43287639]
[1730965257912,9.18427639,188.5,188.46,2.9]
[1730965259213,2.6511,188.51,188.46,2.9]
[1730965259410,6.53287639,188.5,188.46,2.9]
[1730965260720,9.18417639,188.5,188.46,2.9]
[1730965261817,9.18417639,188.5,188.42,2.6523]
[1730965261818,2.6516,188.48,188.41,2.6525]
[1730965262017,2.6516,188.48,188.42,2.9]
[1730965262406,2.6516,188.48,188.42,9.43287639]
[1730965263118,6.53287639,188.49,188.43,2.9]
[1730965263618,6.53287639,188.49,188.43,9.43287639]
[1730965264213,6.53287639,188.49,188.43,2.9]
[1730965264819,6.53287639,188.49,188.43,9.43287639]
[1730965265014,6.53287639,188.51,188.44,2.6521]
[1730965265519,6.53287639,188.51,188.45,6.53287639]
[1730965265720,9.18407639,188.51,188.45,6.53287639]
[1730965267414,1.246,188.54,188.43,2.9]
[1730965267617,6.53287639,188.52,188.46,6.53287639]
[1730965268713,1.246,188.54,188.48,6.53287639]
[1730965269022,1.246,188.54,188.48,9.43287639]
[1730965269023,7.77887639,188.54,188.48,9.43287639]
[1730965269215,7.77887639,188.54,188.48,12.08437639]
[1730965274120,6.53287639,188.51,188.45,2.9]
[1730965274321,6.53287639,188.49,188.45,2.9]
[1730965274516,9.18427639,188.49,188.45,2.9]
[1730965274725,1.246,188.54,188.48,6.53287639]
[1730965274920,1.246,188.54,188.45,2.9]
[1730965274921,6.53287639,188.51,188.45,2.9]
[1730965275225,6.53287639,188.51,188.45,9.43287639]
[1730965275226,9.18407639,188.51,188.45,9.43287639]
[1730965275423,6.53287639,188.49,188.35,23.3673248]
[1730965275618,6.53287639,188.49,188.43,6.53287639]
[1730965275826,6.53287639,188.49,188.44,2.9]
[1730965276126,6.53287639,188.49,188.44,9.43287639]
[1730965276516,6.53287639,188.5,188.44,9.43287639]
[1730965276719,6.53287639,188.5,188.44,2.9]
[1730965276919,6.53287639,188.5,188.44,9.43287639]
[1730965277221,6.53287639,188.48,188.35,23.3673248]
[1730965277415,6.53287639,188.48,188.43,6.53287639]
[1730965277616,6.53287639,188.48,188.43,9.41287639]
[1730965278814,6.53287639,188.5,188.45,6.53287639]
[1730965280020,1.246,188.54,188.45,6.53287639]
[1730965280413,6.53287639,188.5,188.45,6.53287639]
[1730965281526,1.246,188.54,188.47,6.53287639]
[1730965281527,6.53287639,188.53,188.47,6.53287639]
[1730965281920,2.651,188.52,188.48,2.88]
[1730965282621,6.53287639,188.53,188.48,2.88]
[1730965282622,9.18387639,188.53,188.48,2.88]
[1730965282816,6.53287639,188.53,188.48,2.88]
[1730965283223,2.6511,188.52,188.48,2.88]
[1730965283923,6.53287639,188.51,188.48,2.88]
[1730965284930,9.18407639,188.51,188.46,2.88]
[1730965285125,9.18407639,188.51,188.45,9.41287639]
[1730965285326,6.53287639,188.51,188.45,9.41287639]
[1730965285523,6.53287639,188.48,188.29,15.93]
[1730965285723,6.53287639,188.48,188.36,6.33001315]
[1730965285935,2.6518,188.47,188.41,6.53287639]
[1730965286130,1.2069,188.5,188.43,6.53287639]
[1730965286131,1.3166,188.49,188.43,6.53287639]
[1730965286423,1.3166,188.49,188.45,6.53287639]
[1730965287020,1.246,188.54,188.45,6.53287639]
[1730965287231,9.18397639,188.52,188.46,6.53287639]
[1730965287528,6.53287639,188.52,188.46,9.41287639]
[1730965288527,2.6509,188.53,188.46,9.41287639]
[1730965288732,9.18377639,188.53,188.46,9.41287639]
[1730965290127,2.6509,188.53,188.46,9.41287639]
[1730965290431,6.53287639,188.52,188.46,9.41287639]
[1730965291627,6.53287639,188.52,188.46,12.06467639]
[1730965293041,6.53287639,188.52,188.46,5.5318]
[1730965293334,6.53287639,188.52,188.47,6.53287639]
[1730965296428,6.53287639,188.52,188.46,2.88]
[1730965296633,9.18397639,188.51,188.46,2.88]
[1730965296936,6.53287639,188.51,188.46,2.88]
[1730965297327,2.6513,188.5,188.44,6.53287639]
[1730965297528,6.53287639,188.46,188.42,2.88]
[1730965297729,6.53287639,188.45,188.42,2.88]
[1730965297925,9.18487639,188.45,188.42,2.88]
[1730965298231,6.53287639,188.45,188.42,2.88]
[1730965299734,6.53287639,188.45,188.4,2.88]
[1730965300737,6.53287639,188.43,188.38,6.53287639]
[1730965301430,6.53287639,188.41,188.36,5.5332]
[1730965301639,6.53287639,188.41,188.36,6.53287639]
[1730965301831,6.53287639,188.41,188.36,9.41287639]
[1730965302631,6.53287639,188.41,188.37,6.53287639]
[1730965303335,6.53287639,188.41,188.36,2.88]
[1730965303530,6.53287639,188.42,188.37,6.53287639]
[1730965305236,6.53287639,188.42,188.36,2.88]
[1730965305438,2.6523,188.43,188.37,6.53287639]
[1730965305633,6.53287639,188.42,188.37,6.53287639]
[1730965305940,6.53287639,188.42,188.36,2.88]
[1730965306131,6.53287639,188.42,188.36,9.41287639]
[1730965306336,6.53287639,188.42,188.36,2.88]
[1730965306634,6.53287639,188.42,188.36,9.41287639]
[1730965306837,9.18527639,188.42,188.36,2.88]
[1730965307242,9.18527639,188.42,188.36,9.41287639]
[1730965307437,6.53287639,188.42,188.36,2.88]
[1730965307637,6.53287639,188.42,188.36,9.41287639]
[1730965308236,6.53287639,188.42,188.36,2.88]
[1730965308448,6.53287639,188.39,188.32,2.6538]
[1730965308634,6.53287639,188.39,188.33,6.53287639]
[1730965308837,1.2058,188.38,188.33,6.53287639]
[1730965309345,6.53287639,188.37,188.33,6.53287639]
[1730965310240,6.53287639,188.37,188.32,2.76]
[1730965310441,6.53287639,188.37,188.32,9.29287639]
[1730965310939,6.53287639,188.37,188.32,6.53287639]
[1730965311449,6.53287639,188.37,188.31,9.29287639]
[1730965311643,1.2058,188.38,188.35,6.53287639]
[1730965311951,1.2925,188.4,188.35,6.53287639]
[1730965312140,1.3001,188.41,188.37,6.53287639]
[1730965315939,1.3001,188.41,188.36,2.76]
[1730965316148,7.83297639,188.41,188.36,2.76]
[1730965316545,1.3001,188.41,188.36,2.76]
[1730965317245,1.3001,188.41,188.37,6.53287639]
[1730965319150,1.3001,188.41,188.36,2.76]
[1730965319346,1.3001,188.41,188.37,6.53287639]
[1730965320952,7.83297639,188.41,188.36,2.76]
[1730965321551,6.53287639,188.38,188.19,21.2411]
[1730965321755,6.53287639,188.38,188.31,6.53287639]
[1730965321950,6.53287639,188.38,188.2,13.63319306]
[1730965321951,6.53287639,188.38,188.29,2.76]
[1730965322253,9.18597639,188.38,188.31,6.53287639]
[1730965322843,2.6532,188.37,188.31,6.53287639]
[1730965323550,6.53287639,188.36,188.31,6.53287639]
[1730965324468,9.18627639,188.36,188.29,9.29287639]
[1730965325252,1.2435,188.37,188.28,2.76]
[1730965325253,6.53287639,188.34,188.28,2.76]
[1730965325453,6.53287639,188.34,188.27,9.29287639]
[1730965325943,6.53287639,188.33,188.27,9.29287639]
[1730965326546,6.53287639,188.34,188.27,9.29287639]
[1730965327251,6.53287639,188.34,188.27,11.94737639]
[1730965327454,6.53287639,188.34,188.27,5.4145]
[1730965327652,6.53287639,188.34,188.29,6.53287639]
[1730965328248,6.53287639,188.34,188.27,5.4145]
[1730965328449,6.53287639,188.34,188.29,6.53287639]
[1730965329355,2.6535,188.35,188.29,6.53287639]
[1730965329551,6.53287639,188.32,188.17,1.32798353]
[1730965329755,6.53287639,188.29,188.22,6.53287639]
[1730965330653,6.53287639,188.32,188.26,6.53287639]
[1730965330851,6.53287639,188.33,188.26,6.53287639]
[1730965331054,3.8481,188.34,188.28,6.53287639]
[1730965331254,7.72727639,188.34,188.28,6.53287639]
[1730965333254,6.53287639,188.32,188.26,6.53287639]
[1730965333555,6.53287639,188.3,188.24,6.53287639]
[1730965334263,9.18697639,188.3,188.24,6.53287639]
[1730965335556,6.53287639,188.27,188.21,6.53287639]
[1730965337058,6.53287639,188.3,188.25,6.53287639]
[1730965337260,3.9544,188.34,188.26,6.53287639]
[1730965337559,6.53287639,188.32,188.26,6.53287639]
[1730965337953,6.53287639,188.3,188.25,9.29287639]
[1730965338150,3.9544,188.34,188.25,9.29287639]
[1730965338354,6.53287639,188.3,188.25,9.29287639]
[1730965346269,6.53287639,188.29,188.15,1.2906]
[1730965346575,6.53287639,188.27,188.22,6.53287639]
[1730965348675,9.18747639,188.27,188.2,2.76]
[1730965348877,6.53287639,188.28,188.22,6.53287639]
[1730965349768,6.53287639,188.29,188.25,6.53287639]
[1730965349969,6.53287639,188.31,188.25,6.53287639]
[1730965350276,9.18697639,188.31,188.25,6.53287639]
[1730965354773,6.53287639,188.31,188.25,6.53287639]
[1730965354968,2.6541,188.3,188.25,6.53287639]
[1730965355169,9.18697639,188.3,188.25,6.53287639]
[1730965356681,6.53287639,188.28,188.24,2.6549]
[1730965357184,9.18697639,188.3,188.24,2.6549]
[1730965358675,9.18697639,188.3,188.23,9.18797639]
[1730965359874,2.6541,188.3,188.23,9.18797639]
[1730965360083,6.53287639,188.29,188.23,9.18797639]
[1730965360485,6.53287639,188.29,188.23,6.53287639]
[1730965362788,1.1944,188.34,188.23,6.53287639]
[1730965363083,6.53287639,188.28,188.22,6.53287639]
[1730965363281,6.53287639,188.26,188.22,2.76]
[1730965363586,9.18757639,188.26,188.22,2.76]
[1730965363786,6.53287639,188.26,188.22,2.76]
[1730965364183,2.6548,188.25,188.22,2.76]
[1730965364880,2.6034,188.29,188.15,1.2906]
[1730965364881,6.53287639,188.24,188.15,1.2906]
[1730965365076,6.53287639,188.23,188.17,6.53287639]
[1730965366585,1.2185,188.27,188.14,6.53287639]
[1730965366586,6.53287639,188.2,188.14,6.53287639]
[1730965366794,6.53287639,188.2,188.15,2.74]
[1730965367090,2.6556,188.19,188.15,2.74]
[1730965367490,1.2493,188.22,188.11,6.53287639]
[1730965367491,6.53287639,188.18,188.11,6.53287639]
[1730965367787,6.53287639,188.18,188.12,2.74]
[1730965368092,6.53287639,188.18,188.07,1.2733]
[1730965368093,6.53287639,188.16,187.99,0.3017]
[1730965368279,6.53287639,188.14,188.09,6.53287639]
[1730965368591,6.53287639,188.14,188.09,9.27287639]
[1730965369986,6.53287639,188.14,188.09,6.53287639]
[1730965370486,2.6561,188.16,188.09,6.53287639]
[1730965370688,6.53287639,188.15,188.09,6.53287639]
[1730965371289,6.53287639,188.11,188.04,2.6577]
[1730965371485,6.53287639,188.11,188.06,6.53287639]
[1730965371690,6.53287639,188.13,188.07,6.53287639]
[1730965372092,1.3153,188.18,188.09,6.53287639]
[1730965372484,6.53287639,188.15,188.09,6.53287639]
[1730965372986,6.53287639,188.13,188.07,9.19017639]
[1730965373294,6.53287639,188.13,188.05,2.74]
[1730965373490,6.53287639,188.11,188.07,6.53287639]
[1730965375792,6.53287639,188.13,188.07,6.53287639]
[1730965377491,6.53287639,188.11,188.05,2.6575]
[1730965377682,6.53287639,188.11,188.05,5.3975]
[1730965377881,6.53287639,188.11,188.05,11.93037639]
[1730965378487,6.53287639,188.11,188.05,9.27287639]
[1730965378684,6.53287639,188.09,188.03,9.27287639]
[1730965379792,6.53287639,188.09,188.03,11.93077639]
[1730965380005,6.53287639,188.11,188.05,6.53287639]
[1730965380386,6.53287639,188.11,188.05,9.19037639]
[1730965381093,6.53287639,188.09,188.03,2.74]
[1730965381287,6.53287639,188.09,188.03,9.27287639]
[1730965381796,6.53287639,188.07,188.01,6.53287639]
[1730965381992,6.53287639,188.07,188.01,9.27287639]
[1730965382196,6.53287639,188.07,188.01,2.74]
[1730965383187,6.53287639,188.07,187.95,1.5394]
[1730965383188,6.53287639,188.06,187.95,1.5394]
[1730965383394,6.53287639,188.06,188.0,6.53287639]
[1730965384701,9.19037639,188.06,187.99,6.53287639]
[1730965384904,6.53287639,188.06,187.99,6.53287639]
[1730965385094,6.53287639,188.06,187.99,9.27287639]
[1730965385298,6.53287639,188.06,188.01,6.53287639]
[1730965388711,6.53287639,188.06,187.99,11.93127639]
[1730965389220,6.53287639,188.04,187.99,2.74]
[1730965390503,1.2857,188.06,187.99,2.74]
[1730965390703,7.81857639,188.06,188.0,6.53287639]
[1730965391204,6.53287639,188.04,188.0,6.53287639]
[1730965391616,1.2857,188.06,188.0,6.53287639]
[1730965391808,6.53287639,188.05,188.0,9.19117639]
[1730965392116,6.53287639,188.05,188.0,6.53287639]
[1730965392502,1.2857,188.06,188.0,6.53287639]
[1730965392705,1.2857,188.06,187.99,2.74]
[1730965392706,6.53287639,188.05,187.99,5.3984]
[1730965392916,6.53287639,188.04,187.99,9.27287639]
[1730965393913,7.81857639,188.06,187.99,9.27287639]
[1730965394118,1.2143,188.08,188.01,6.53287639]
[1730965394317,6.53287639,188.07,188.01,6.53287639]
[1730965394610,6.53287639,188.07,188.02,6.53287639]
[1730965396115,6.53287639,188.07,188.0,9.19117639]
[1730965397715,6.53287639,188.07,188.01,2.6582]
[1730965398016,6.53287639,188.07,187.99,2.74]
[1730965398017,6.53287639,188.07,188.02,6.53287639]
[1730965398418,6.53287639,188.07,188.02,9.19087639]
[1730965399021,6.53287639,188.07,188.02,6.53287639]
[1730965399917,6.53287639,188.05,188.0,5.3983]
[1730965400117,6.53287639,188.05,188.0,9.19117639]
[1730965400313,6.53287639,188.05,188.0,11.93117639]
[1730965400719,6.53287639,188.03,188.0,2.74]
[1730965401424,6.53287639,188.03,187.98,9.27287639]
[1730965404035,2.6575,188.06,187.98,9.27287639]
[1730965404218,1.2143,188.08,188.03,2.6578]
[1730965404418,1.2143,188.08,188.02,6.53287639]
[1730965404419,7.74717639,188.08,188.02,6.53287639]
[1730965404623,1.2143,188.08,188.02,6.53287639]
[1730965404826,1.2143,188.08,188.02,9.19087639]
[1730965404827,7.74717639,188.08,188.02,9.19087639]
[1730965405729,7.74717639,188.08,188.0,2.6583]
[1730965405933,7.74717639,188.08,188.01,6.53287639]
[1730965406327,7.74717639,188.08,188.01,9.19097639]
[1730965409935,7.74717639,188.08,188.01,6.53287639]
[1730965410737,10.40437639,188.08,188.01,6.53287639]
[1730965410938,7.74717639,188.08,188.01,6.53287639]
[1730965411742,7.74717639,188.08,188.01,9.19107639]
[1730965414344,10.40447639,188.08,188.01,6.53287639]
[1730965416444,10.40447639,188.08,188.01,9.19107639]
[1730965418444,6.53287639,188.06,188.01,6.53287639]
[1730965419540,6.53287639,188.06,188.01,9.19107639]
[1730965423352,7.74717639,188.08,188.03,6.53287639]
[1730965423651,1.226,188.1,188.05,6.53287639]
[1730965424436,3.883,188.1,188.05,6.53287639]
[1730965426143,1.226,188.1,188.05,6.53287639]
[1730965426348,6.53287639,188.11,188.05,6.53287639]
[1730965426747,6.93311493,188.13,188.06,2.6573]
[1730965427051,13.46599132,188.13,188.07,6.53287639]
[1730965427248,6.53287639,188.13,188.08,6.53287639]
[1730965427452,6.53287639,188.13,188.08,9.25287639]
[1730965427650,1.1977,188.16,188.08,9.25287639]
[1730965427844,6.53287639,188.15,188.08,11.90997639]
[1730965429653,6.53287639,188.15,188.1,6.53287639]
[1730965430750,6.53287639,188.15,188.1,9.18977639]
[1730965431056,6.53287639,188.17,188.1,6.53287639]
[1730965431254,6.53287639,188.17,188.12,6.53287639]
[1730965431444,6.93311493,188.18,188.12,6.53287639]
[1730965431647,13.46599132,188.18,188.13,2.72]
[1730965433260,6.53287639,188.18,188.13,2.72]
[1730965433447,119.27449639,188.19,188.14,6.53287639]
[1730965433944,112.74162,188.19,188.14,6.53287639]
[1730965436750,6.53287639,188.18,188.13,2.72]
[1730965437146,6.53287639,188.18,188.14,2.72]
[1730965439154,112.74162,188.19,188.14,2.72]
[1730965439351,6.53287639,188.18,188.14,2.72]
[1730965443256,6.53287639,188.17,188.14,2.72]
[1730965443464,6.53287639,188.17,188.11,6.53287639]
[1730965443656,6.53287639,188.17,188.12,2.72]
[1730965444757,9.18887639,188.17,188.12,2.72]
[1730965446957,6.53287639,188.17,188.12,2.72]
[1730965447157,6.53287639,188.17,188.11,9.25287639]
[1730965449659,2.6559,188.18,188.11,9.25287639]
[1730965449860,6.53287639,188.17,188.11,9.25287639]
[1730965450260,6.53287639,188.17,188.12,6.53287639]
[1730965453359,112.74162,188.19,188.12,6.53287639]
[1730965453562,112.74162,188.19,188.14,6.53287639]
[1730965456071,112.74162,188.19,188.18,6.53287639]
[1730965456261,112.74162,188.19,188.16,2.72]
[1730965456466,112.74162,188.19,188.17,6.53287639]
[1730965457072,112.74162,188.19,188.16,2.72]
[1730965461374,112.74162,188.19,188.16,9.25287639]
[1730965466471,112.74162,188.19,188.16,2.72]
[1730965468272,112.74162,188.19,188.16,9.25287639]
[1730965469580,112.74162,188.19,188.17,6.53287639]
[1730965470081,112.74162,188.19,188.18,2.74]
[1730965470285,112.74162,188.19,188.18,9.27287639]
[1730965474986,112.74162,188.19,188.18,2.74]
[1730965475382,112.74162,188.19,188.16,2.74]
[1730965477473,112.74162,188.19,188.16,9.27287639]
[1730965477678,112.74162,188.19,188.18,6.53287639]
[1730965489598,112.74162,188.19,188.16,9.27287639]
[1730965493096,112.74162,188.19,188.17,2.72]
[1730965498703,112.74162,188.19,188.09,3.4295795]
[1730965498908,119.27449639,188.19,188.14,6.53287639]
[1730965499106,119.27449639,188.19,188.14,9.25287639]
[1730965499799,112.74162,188.19,188.14,9.25287639]
[1730965500606,112.74162,188.19,188.14,2.72]
[1730965500906,112.74162,188.19,188.14,9.25287639]
[1730965502703,112.74162,188.19,188.17,6.53287639]
[1730965502904,112.74162,188.19,188.18,6.53287639]
[1730965509603,119.27449639,188.19,188.12,2.6566]
[1730965509805,119.27449639,188.19,188.14,6.53287639]
[1730965510210,112.74162,188.19,188.15,6.53287639]
[1730965510510,112.74162,188.19,188.17,6.53287639]
[1730965512009,112.74162,188.19,188.17,9.25287639]
[1730965513607,112.74162,188.19,188.17,2.72]
[1730965514007,112.74162,188.19,188.14,6.53287639]
[1730965514209,112.74162,188.19,188.15,2.72]
[1730965514612,6.53287639,188.18,188.06,22.13414096]
[1730965514907,6.53287639,188.18,188.12,6.53287639]
[1730965515105,6.53287639,188.18,188.12,9.25287639]
[1730965515714,6.53287639,188.18,188.12,2.72]
[1730965515905,6.53287639,188.18,188.12,9.25287639]
[1730965516108,1.2817,188.17,188.12,9.25287639]
[1730965518103,6.53287639,188.15,188.07,3.36766608]
[1730965518313,6.53287639,188.13,188.06,21.46204096]
[1730965518599,9.18937639,188.13,188.07,1.32900646]
[1730965518805,6.53287639,188.11,188.06,9.25287639]
[1730965519020,6.53287639,188.11,188.05,2.72]
[1730965519204,1.2245,188.1,188.05,2.72]
[1730965519413,2.5101,188.1,188.05,2.72]
[1730965519708,2.5101,188.1,188.04,9.25287639]
[1730965521220,6.53287639,188.15,188.08,6.53287639]
[1730965521513,9.00447639,188.15,188.08,6.53287639]
[1730965525515,9.00447639,188.15,188.08,9.18997639]
[1730965525711,2.4716,188.15,188.1,6.53287639]
[1730965525905,2.4716,188.15,188.12,6.53287639]
[1730965526503,1.2318,188.15,188.12,6.53287639]
[1730965527607,1.2318,188.15,188.12,9.18947639]
[1730965529109,1.2318,188.15,188.1,2.72]
[1730965529310,1.2318,188.15,188.11,6.53287639]
[1730965533506,6.53287639,188.18,188.12,6.53287639]
[1730965534314,6.53287639,188.18,188.12,9.18947639]
[1730965535308,6.53287639,188.18,188.12,6.53287639]
[1730965535913,115.39732,188.19,188.12,6.53287639]
[1730965535914,112.74162,188.19,188.12,6.53287639]
[1730965536115,112.74162,188.19,188.18,9.18867639]
[1730965536315,112.74162,188.19,188.18,11.90867639]
[1730965537017,112.74162,188.19,188.18,5.3758]
[1730965537217,112.74162,188.19,188.18,11.90867639]
[1730965538517,112.74162,188.19,188.18,5.3758]
[1730965538716,112.74162,188.19,188.18,11.90867639]
[1730965539814,34.16173504,188.19,188.18,11.90867639]
[1730965544118,6.53287639,188.28,188.2,2.6555]
[1730965544321,6.53287639,188.28,188.22,6.53287639]
[1730965544522,6.53287639,188.28,188.23,2.72]
[1730965545324,6.53287639,188.27,188.23,2.72]
[1730965548832,6.53287639,188.28,188.23,9.25287639]
[1730965550033,1.2265,188.29,188.23,9.25287639]
[1730965550034,6.53287639,188.27,188.23,2.72]
[1730965550936,6.53287639,188.25,188.23,2.72]
[1730965551330,6.53287639,188.25,188.22,2.72]
[1730965551827,6.53287639,188.25,188.11,3.6295]
[1730965551828,6.53287639,188.25,188.16,2.656]
[1730965552035,6.53287639,188.24,188.19,6.53287639]
[1730965552227,6.53287639,188.24,188.2,2.72]
[1730965554233,6.53287639,188.24,188.19,2.72]
[1730965554427,1.2265,188.29,188.11,3.6295]
[1730965554428,6.53287639,188.2,188.11,3.6295]
[1730965554628,6.53287639,188.2,188.15,6.53287639]
[1730965556024,6.53287639,188.2,188.14,2.6562]
[1730965556025,7.72977639,188.22,188.16,6.53287639]
[1730965556230,7.72977639,188.22,188.17,2.72]
[1730965556832,1.1969,188.22,188.17,2.72]
[1730965557132,7.72977639,188.22,188.16,6.53287639]
[1730965557343,7.72977639,188.22,188.18,2.72]
[1730965557630,1.1969,188.22,188.18,9.25287639]
[1730965558430,1.1969,188.22,188.19,6.53287639]
[1730965560846,1.1969,188.22,188.18,9.25287639]
[1730965563941,6.53287639,188.24,188.18,11.90867639]
[1730965564334,6.53287639,188.26,188.2,6.53287639]
[1730965566342,2.4437,188.29,188.21,2.6553]
[1730965566546,6.53287639,188.28,188.22,6.53287639]
[1730965566841,2.4437,188.29,188.23,2.72]
[1730965567038,8.97657639,188.29,188.23,2.72]
[1730965570749,11.63077639,188.29,188.23,2.72]
[1730965571647,11.63077639,188.29,188.23,5.3751]
[1730965572745,11.63077639,188.29,188.11,19.5695]
[1730965572746,2.4437,188.29,188.11,19.5695]
[1730965572947,6.53287639,188.26,188.19,6.53287639]
[1730965573143,6.53287639,188.26,188.2,2.72]
[1730965573747,6.53287639,188.26,188.2,5.3754]
[1730965573955,6.53287639,188.27,188.21,6.53287639]
[1730965575861,3.8619,188.28,188.21,6.53287639]
[1730965576157,7.74037639,188.28,188.21,6.53287639]
[1730965576545,7.74037639,188.28,188.23,6.53287639]
[1730965576751,1.2075,188.28,188.23,6.53287639]
[1730965577146,1.2075,188.28,188.24,6.53287639]
[1730965577346,7.75557639,188.29,188.25,2.72]
[1730965577555,6.53287639,188.27,188.26,2.72]
[1730965579056,6.53287639,188.26,188.22,2.72]
[1730965580063,6.53287639,188.28,188.22,2.72]
[1730965580256,6.53287639,188.28,188.22,9.25287639]
[1730965581058,6.53287639,188.27,188.22,9.25287639]
[1730965582260,7.75557639,188.29,188.22,9.25287639]
[1730965582458,6.93561978,188.35,188.24,6.53287639]
[1730965582659,6.53287639,188.31,188.24,6.53287639]
[1730965583660,6.53287639,188.31,188.24,9.18777639]
[1730965584069,1.2855,188.33,188.24,6.53287639]